bitfinex-derivatives/quotes_ETHF0:USTF0_20241207
["timestamp","ask_amount","ask_price","bid_price","bid_amount"]
[1733581784797,1.08054098,3989.3,3989.2,0.17528]
[1733581785590,0.17528,3989.3,3989.2,0.17528]
[1733581785790,0.17528,3989.3,3989.2,4.11584428]
[1733581787002,0.17528,3989.3,3989.2,3.94056428]
[1733581787306,0.17528,3989.2,3989.1,4.92015428]
[1733581787505,0.4115,3989.4,3989.1,4.92015428]
[1733581787506,0.17528,3989.4,3989.3,0.17528]
[1733581788400,0.17528,3989.4,3989.3,5.05771425]
[1733581790294,0.17528,3989.4,3989.3,0.17528]
[1733581790500,0.17528,3989.4,3989.3,4.11451823]
[1733581790802,0.17528,3989.4,3989.3,0.17528]
[1733581791197,0.17528,3989.4,3989.3,4.11429298]
[1733581795197,0.17528,3989.4,3989.3,5.05607158]
[1733581796301,0.17528,3989.4,3989.3,0.17528]
[1733581797902,0.17528,3989.3,3989.2,0.17528]
[1733581798106,0.17528,3989.2,3989.1,4.91761872]
[1733581798302,0.17528,3989.2,3989.1,0.97959]
[1733581798802,0.17528,3989.2,3989.1,4.91761872]
[1733581799407,0.17528,3989.2,3989.1,0.97959]
[1733581802417,0.17528,3989.2,3989.1,4.91761872]
[1733581802810,0.17528,3989.2,3989.1,0.8043]
[1733581803115,0.17528,3989.2,3989.1,4.74232872]
[1733581803306,0.17528,3989.2,3989.1,11.59426323]
[1733581803509,0.17528,3989.2,3989.1,11.76955323]
[1733581804105,0.17528,3989.3,3989.2,0.17528]
[1733581804304,0.17528,3989.3,3989.2,10.96299316]
[1733581805208,0.3885,3989.5,3989.2,4.88037253]
[1733581805409,0.56377,3989.5,3989.4,4.11369552]
[1733581806910,0.56377,3989.5,3989.4,0.17528]
[1733581807108,0.56377,3989.5,3989.4,5.056479]
[1733581807604,0.56377,3989.5,3989.4,5.05647413]
[1733581808914,0.17527,3989.5,3989.4,5.05647413]
[1733581809110,0.17527,3989.5,3989.4,10.96409742]
[1733581809416,0.17527,3989.5,3989.4,5.05647413]
[1733581809612,0.4102,3989.8,3989.4,4.88160755]
[1733581809818,0.58546,3989.8,3989.7,0.17526]
[1733581810024,0.58546,3989.8,3989.7,10.9653865]
[1733581810216,0.17526,3989.9,3989.8,0.17525]
[1733581810421,0.17526,3989.9,3989.8,10.96554042]
[1733581811015,0.17526,3989.9,3989.8,6.08393287]
[1733581811212,0.17526,3989.9,3989.8,10.96504719]
[1733581811412,0.17526,3989.9,3989.8,5.05636432]
[1733581812620,0.17526,3989.9,3989.8,10.96504719]
[1733581813119,0.17526,3989.9,3989.8,5.05636432]
[1733581813318,0.17526,3989.9,3989.8,10.96349391]
[1733581813535,0.17526,3989.9,3989.8,10.96349885]
[1733581813822,0.17525,3990.1,3990.0,0.17525]
[1733581814013,0.17525,3990.1,3990.0,5.05580766]
[1733581814520,0.17525,3990.1,3990.0,5.05646514]
[1733581815116,0.17525,3990.1,3990.0,10.78837954]
[1733581815311,0.58645,3990.1,3990.0,4.88121514]
[1733581815620,0.58645,3990.1,3990.0,3.93787896]
[1733581818421,0.58645,3990.1,3989.8,4.11313896]
[1733581818422,0.4112,3990.1,3989.8,4.11313896]
[1733581818616,0.17525,3989.9,3989.8,4.11313896]
[1733581819019,0.17525,3989.9,3989.8,3.93787896]
[1733581819622,0.17525,3989.9,3989.7,0.58626]
[1733581819623,0.17526,3989.8,3989.7,4.52413896]
[1733581820222,0.17526,3989.8,3989.7,4.34887896]
[1733581820424,0.90526098,3989.9,3989.6,3.93787896]
[1733581820622,0.17527,3989.5,3989.3,3.93787896]
[1733581820825,1.2188,3989.7,3989.3,3.93787896]
[1733581820826,1.08054098,3989.4,3989.3,3.93787896]
[1733581821021,0.17528,3989.3,3989.2,3.2078]
[1733581821425,0.17528,3989.3,3989.2,3.38308]
[1733581821618,0.17528,3989.3,3989.2,7.32095896]
[1733581822426,0.17528,3989.3,3989.2,7.14567896]
[1733581823023,0.17528,3989.3,3989.2,3.2078]
[1733581823219,0.17528,3989.3,3989.2,7.32095896]
[1733581823421,0.669,3989.6,3989.2,8.08832626]
[1733581823633,0.17528,3989.3,3989.2,3.38308]
[1733581824024,0.17528,3989.3,3989.2,8.26356217]
[1733581824526,0.17528,3989.3,3989.2,14.17072657]
[1733581824831,0.17528,3989.3,3989.2,8.26356217]
[1733581825131,2.93877462,3990.1,3989.5,0.17526]
[1733581825326,0.17526,3989.8,3989.7,4.11350202]
[1733581825527,0.17526,3989.8,3989.7,0.17526]
[1733581825728,0.17525,3990.1,3990.0,0.17525]
[1733581825927,0.17525,3990.1,3990.0,4.11312351]
[1733581826233,0.84424,3990.2,3990.1,0.17525]
[1733581826434,0.17524,3990.2,3990.1,10.96243035]
[1733581827127,0.17524,3990.4,3990.3,0.17523]
[1733581827322,0.17524,3990.4,3990.3,4.11261211]
[1733581828437,0.17524,3990.4,3990.3,4.50191211]
[1733581829328,0.17524,3990.4,3990.3,4.32668211]
[1733581830939,0.17524,3990.4,3990.3,0.3893]
[1733581831237,0.17524,3990.4,3990.3,4.32668211]
[1733581831532,0.17524,3990.4,3990.3,0.3893]
[1733581832330,0.17524,3990.4,3990.3,0.56454]
[1733581832628,0.17524,3990.4,3990.3,4.50192211]
[1733581833434,0.17524,3990.4,3990.3,0.56454]
[1733581834141,0.17524,3990.4,3990.3,0.94294]
[1733581835035,0.17524,3990.4,3990.3,0.56454]
[1733581835836,0.17524,3990.4,3990.3,0.3893]
[1733581836236,0.17524,3990.4,3990.3,0.56454]
[1733581840436,0.7836,3990.7,3990.3,0.3893]
[1733581840736,2.93877462,3991.1,3990.5,5.01786309]
[1733581840737,0.17522,3990.6,3990.5,5.01786309]
[1733581840934,0.788,3991.0,3990.5,4.84264309]
[1733581841138,0.17522,3990.8,3990.7,0.17521]
[1733581842133,0.17521,3990.9,3990.8,0.17521]
[1733581842336,2.93877462,3991.5,3990.8,0.90526098]
[1733581842641,0.1752,3991.3,3991.2,1.08045098]
[1733581843338,0.17519,3991.4,3991.3,0.17519]
[1733581844142,0.17519,3991.5,3991.4,0.17518]
[1733581844332,0.7838,3991.7,3991.3,0.41]
[1733581844543,0.03221,3992.1,3991.7,0.17517]
[1733581844739,0.03221,3992.1,3991.8,0.405]
[1733581844740,0.17517,3991.9,3991.8,0.405]
[1733581845648,0.17517,3991.9,3991.8,0.58017]
[1733581847244,0.17517,3991.9,3991.8,0.405]
[1733581848049,0.17517,3991.9,3991.4,0.17519]
[1733581848050,0.17518,3991.5,3991.4,0.55269]
[1733581848455,0.43791,3992.0,3991.4,0.3775]
[1733581848645,0.17518,3991.6,3991.5,0.17518]
[1733581850456,0.90526098,3992.1,3991.4,0.3775]
[1733581850645,0.17518,3991.5,3991.4,0.55269]
[1733581851347,0.17518,3991.5,3991.4,0.3775]
[1733581851552,0.17518,3991.5,3991.4,0.55269]
[1733581851945,0.17518,3991.5,3991.4,0.3775]
[1733581852848,0.17518,3991.5,3991.4,0.55269]
[1733581853953,0.668,3992.1,3991.4,0.3775]
[1733581854257,0.17518,3991.8,3991.7,1.08043098]
[1733581855143,0.7826,3992.2,3991.7,0.90526098]
[1733581855342,0.17517,3991.9,3991.8,0.17517]
[1733581855844,0.17516,3992.0,3991.9,0.17516]
[1733581856252,0.7826,3992.2,3991.7,0.90526098]
[1733581856559,0.17516,3992.1,3992.0,1.08042098]
[1733581856757,0.668,3992.5,3992.0,0.90526098]
[1733581856949,0.4131,3992.4,3992.3,0.90526098]
[1733581857253,1.0696,3992.9,3992.3,4.11306098]
[1733581857450,0.17513,3992.7,3992.6,1.08040098]
[1733581858151,0.17513,3992.7,3992.6,0.90526098]
[1733581860349,0.7788,3992.9,3992.6,0.90526098]
[1733581860551,0.7788,3992.9,3992.7,0.17513]
[1733581860850,0.95392,3992.9,3992.8,0.17513]
[1733581861451,0.55232,3992.9,3992.8,0.17513]
[1733581861650,0.55232,3992.9,3992.6,0.90526098]
[1733581861851,0.55232,3992.9,3992.7,0.17513]
[1733581862357,0.55232,3992.9,3992.6,0.90526098]
[1733581862556,0.55232,3992.9,3992.7,0.17513]
[1733581863059,0.3772,3992.9,3992.6,0.90526098]
[1733581863258,0.55232,3992.9,3992.8,0.17513]
[1733581863454,0.55232,3992.9,3992.7,0.17513]
[1733581863650,0.22124,3993.0,3992.8,0.17512]
[1733581863862,0.22124,3993.0,3992.9,0.90526098]
[1733581864160,0.22124,3993.0,3992.9,1.28986098]
[1733581866551,0.04612,3993.0,3992.7,3.2078]
[1733581866752,0.17513,3992.8,3992.7,3.2078]
[1733581866957,0.17512,3992.9,3992.8,0.17512]
[1733581867256,0.04612,3993.0,3992.7,3.2078]
[1733581867462,0.17512,3992.9,3992.8,0.17512]
[1733581867657,0.17512,3992.9,3992.7,3.2078]
[1733581867860,0.04612,3993.0,3992.8,0.17513]
[1733581868056,0.04612,3993.0,3992.9,1.08038098]
[1733581869763,0.17511,3993.3,3992.9,0.90526098]
[1733581869963,0.5526,3993.4,3993.3,0.90526098]
[1733581870357,0.5526,3993.4,3993.3,1.30656098]
[1733581870964,0.5526,3993.4,3993.3,1.48166098]
[1733581873964,0.5526,3993.4,3993.3,1.30656098]
[1733581874163,0.5526,3993.4,3993.3,0.4013]
[1733581875155,0.5526,3993.4,3993.3,0.5764]
[1733581875563,0.5526,3993.4,3993.3,0.4013]
[1733581875776,0.17511,3993.2,3993.1,3.2078]
[1733581876070,0.17513,3992.8,3992.7,1.30036098]
[1733581876376,0.17513,3992.9,3992.8,0.17512]
[1733581876763,0.3775,3993.4,3992.7,1.30036098]
[1733581876969,0.5526,3993.4,3993.3,1.08036098]
[1733581877868,0.5526,3993.4,3993.3,0.90526098]
[1733581878066,0.5526,3993.4,3993.0,0.90526098]
[1733581878067,0.17511,3993.1,3993.0,0.90526098]
[1733581878262,0.17511,3993.1,3992.8,3.2078]
[1733581878263,0.17512,3992.9,3992.8,3.38292]
[1733581878458,0.17512,3992.9,3992.8,3.38293]
[1733581878662,0.3775,3993.4,3992.8,3.2078]
[1733581878862,0.17511,3993.2,3993.1,0.90526098]
[1733581879259,0.17511,3993.3,3993.2,0.17511]
[1733581879663,0.3775,3993.4,3993.2,0.4107]
[1733581879864,0.3775,3993.4,3993.3,0.1751]
[1733581879865,0.5526,3993.4,3993.3,0.1751]
[1733581880368,0.5526,3993.4,3993.3,0.5873]
[1733581880772,0.3775,3993.4,3993.3,0.5873]
[1733581881002,0.5526,3993.4,3993.3,0.5873]
[1733581881975,0.5526,3993.4,3993.3,0.4122]
[1733581882176,0.5526,3993.4,3993.3,0.5873]
[1733581882371,0.5526,3993.4,3993.3,0.4122]
[1733581883371,0.5526,3993.4,3993.3,0.5873]
[1733581883678,0.3775,3993.4,3993.3,0.4122]
[1733581883877,0.3857,3993.7,3993.6,0.17509]
[1733581884073,0.3857,3993.7,3993.6,1.08035098]
[1733581884473,0.4036,3993.9,3993.6,0.90526098]
[1733581884770,0.57868,3993.9,3993.8,0.17508]
[1733581884976,0.17508,3993.8,3993.7,0.17508]
[1733581885274,0.57868,3993.9,3993.8,0.17508]
[1733581886570,0.17508,3993.8,3993.7,0.3826]
[1733581886873,0.17508,3993.8,3993.7,0.55769]
[1733581888573,0.17508,3993.8,3993.7,0.3826]
[1733581888772,0.17508,3993.8,3993.7,0.55769]
[1733581890376,0.17508,3993.8,3993.7,0.3826]
[1733581890580,0.17509,3993.7,3993.6,1.08035098]
[1733581891372,0.4036,3993.9,3993.6,0.90526098]
[1733581891571,0.4036,3993.9,3993.8,3.38288]
[1733581891980,0.57017,3994.1,3994.0,0.17507]
[1733581892182,0.57017,3994.1,3994.0,1.08033098]
[1733581892884,0.3951,3994.1,3994.0,1.08033098]
[1733581893381,0.17505,3994.6,3994.5,0.17505]
[1733581893980,0.3837,3994.7,3994.6,0.17505]
[1733581893981,0.55875,3994.7,3994.6,0.17505]
[1733581894177,0.17505,3994.6,3994.5,0.58555]
[1733581894481,0.17505,3994.7,3994.6,0.17505]
[1733581894675,0.56004,3994.7,3994.6,0.17505]
[1733581894881,0.56004,3994.7,3994.6,0.58895]
[1733581896279,0.385,3994.7,3994.6,0.58895]
[1733581896486,0.56004,3994.7,3994.6,0.58895]
[1733581897583,0.385,3994.7,3994.2,3.2078]
[1733581897781,0.17506,3994.3,3994.2,3.2078]
[1733581898477,0.667,3994.6,3994.2,3.2078]
[1733581898681,0.84205,3994.6,3994.5,0.17505]
[1733581898879,0.667,3994.6,3994.5,0.17505]
[1733581899180,0.3838,3994.9,3994.8,0.17504]
[1733581899378,0.09007,3995.7,3995.4,0.17501]
[1733581899379,3.79251,3995.6,3995.4,0.17501]
[1733581899581,0.17501,3995.5,3995.3,1.08027098]
[1733581900579,0.17501,3995.5,3995.4,0.17501]
[1733581901177,4.3819,3995.6,3994.8,2.39179076]
[1733581901377,3.9722,3995.6,3995.5,0.17501]
[1733581901985,4.1472,3995.6,3995.5,0.17501]
[1733581902370,3.9722,3995.6,3995.1,0.4046]
[1733581902572,0.17501,3995.5,3995.4,0.17501]
[1733581904682,3.9722,3995.6,3995.2,0.3931]
[1733581904885,0.17502,3995.4,3995.3,0.17501]
[1733581905376,0.17502,3995.2,3995.1,0.57962]
[1733581905980,0.407,3995.5,3995.2,0.17502]
[1733581905981,0.17502,3995.3,3995.2,0.17502]
[1733581906587,0.17502,3995.4,3995.3,0.17501]
[1733581908980,3.38281,3995.6,3995.5,0.17501]
[1733581909884,3.79351,3995.6,3995.5,0.17501]
[1733581911690,0.5857,3995.6,3995.5,0.17501]
[1733581916900,0.4107,3995.6,3995.5,0.17501]
[1733581917098,0.09007,3995.7,3995.6,0.175]
[1733581918598,0.26507,3995.7,3995.6,0.175]
[1733581918903,0.17501,3995.4,3995.3,0.17502]
[1733581919305,0.09007,3995.7,3995.2,3.6063]
[1733581919499,0.17501,3995.6,3995.5,0.175]
[1733581919997,0.09007,3995.7,3995.2,5.56049076]
[1733581920199,0.17502,3995.3,3995.2,5.33701076]
[1733581921207,0.17502,3995.4,3995.3,0.17501]
[1733581921801,0.26507,3995.7,3995.6,0.175]
[1733581922405,0.17501,3995.6,3995.5,0.175]
[1733581923309,0.43752,3995.6,3994.8,0.3816]
[1733581923505,0.17503,3994.9,3994.8,0.55664]
[1733581924105,0.17503,3994.9,3994.8,0.3816]
[1733581924301,0.3964,3995.2,3994.4,3.5954]
[1733581924508,0.17505,3994.6,3994.5,0.17505]
[1733581925406,0.01060077,3994.6,3994.4,3.2078]
[1733581925708,0.57655,3994.5,3994.4,3.38286]
[1733581926501,0.57655,3994.5,3994.4,3.2078]
[1733581927610,0.17507,3994.2,3994.1,0.4031]
[1733581928012,0.17507,3994.1,3994.0,3.2078]
[1733581928308,0.3919,3994.1,3993.8,3.90913038]
[1733581928504,0.17509,3993.7,3993.6,0.17509]
[1733581928705,0.17508,3993.8,3993.7,0.17508]
[1733581929307,0.17509,3993.7,3993.6,0.17509]
[1733581929913,0.3919,3994.1,3993.5,3.6]
[1733581930111,0.17509,3993.7,3993.6,0.17509]
[1733581930418,0.17509,3993.7,3993.5,3.6]
[1733581930419,0.17507,3994.0,3993.9,0.17507]
[1733581932315,0.3919,3994.1,3994.0,0.17507]
[1733581932611,0.17507,3994.1,3994.0,0.17507]
[1733581933708,0.17508,3994.0,3993.9,0.17508]
[1733581933914,0.667,3994.2,3993.5,7.11693038]
[1733581934116,0.17509,3993.8,3993.7,0.17509]
[1733581934423,0.667,3994.2,3993.5,3.2078]
[1733581934720,0.55989,3993.7,3993.6,0.17509]
[1733581935512,0.3848,3993.7,3993.5,3.2078]
[1733581935715,0.17509,3993.6,3993.5,3.38289]
[1733581936526,0.3848,3993.7,3993.5,3.38289]
[1733581936527,0.55989,3993.7,3993.6,0.17509]
[1733581938019,0.3848,3993.7,3993.5,3.2078]
[1733581938224,0.17509,3993.6,3993.5,3.3829]
[1733581938429,0.17509,3993.6,3993.5,3.2078]
[1733581938622,0.57079,3993.6,3993.5,3.2078]
[1733581939422,1.0627,3993.6,3993.1,3.90913038]
[1733581939621,0.17511,3993.2,3993.1,0.17511]
[1733581940134,1.0627,3993.6,3993.0,7.51673038]
[1733581940326,1.2378,3993.6,3993.5,0.1751]
[1733581940526,1.2378,3993.6,3993.2,4.08423038]
[1733581940527,0.17511,3993.3,3993.2,4.08423038]
[1733581940722,0.17511,3993.3,3993.2,0.1751]
[1733581940924,1.0627,3993.6,3993.1,3.90913038]
[1733581941127,0.667,3993.6,3993.1,3.90913038]
[1733581941435,0.667,3993.6,3993.4,0.1751]
[1733581941436,0.1751,3993.5,3993.4,0.1751]
[1733581941627,0.17511,3993.4,3993.3,0.1751]
[1733581942328,0.1751,3993.5,3993.4,0.1751]
[1733581942526,1.0518,3993.7,3993.1,3.90913038]
[1733581942829,1.0518,3993.7,3993.3,0.1751]
[1733581942830,0.1751,3993.4,3993.3,0.1751]
[1733581945228,1.0518,3993.7,3993.0,3.6076]
[1733581945431,1.0518,3993.7,3993.4,0.1751]
[1733581945432,0.1751,3993.5,3993.4,0.1751]
[1733581946226,0.3848,3993.7,3993.0,5.56179076]
[1733581946417,0.17507,3994.1,3994.0,0.17507]
[1733581946623,3.2078,3994.3,3993.4,3.2078]
[1733581946624,0.667,3994.2,3993.6,0.7853]
[1733581946822,0.17507,3994.2,3994.1,0.17507]
[1733581947723,0.17507,3994.3,3994.2,0.17506]
[1733581949029,0.17506,3994.4,3994.3,0.17506]
[1733581949430,0.56075,3994.5,3994.4,0.17506]
[1733581954050,0.3857,3994.5,3994.4,0.17506]
[1733581954752,0.56075,3994.5,3994.4,0.17506]
[1733581955253,0.3857,3994.5,3994.4,0.17506]
[1733581959560,0.01060077,3994.6,3994.5,0.17505]
[1733581959856,0.01060077,3994.6,3994.5,1.07737903]
[1733581960056,0.01060077,3994.6,3994.5,11.81218646]
[1733581960656,0.01060077,3994.6,3994.5,5.94870352]
[1733581961258,0.01060077,3994.6,3994.5,11.83219386]
[1733581961752,0.01060077,3994.6,3994.5,5.94870352]
[1733581962148,0.01060077,3994.6,3994.5,11.83219386]
[1733581962667,0.01060077,3994.6,3994.5,5.04637449]
[1733581962857,0.01060077,3994.6,3994.5,10.93082403]
[1733581963161,0.01060077,3994.6,3994.5,5.04637449]
[1733581963365,0.01060077,3994.6,3994.5,10.93082403]
[1733581965558,0.01060077,3994.6,3994.5,10.92749872]
[1733581966355,0.01060077,3994.6,3994.5,11.31119872]
[1733581967838,0.01060077,3994.6,3994.5,14.51899872]
[1733581968648,0.01060077,3994.6,3994.5,14.34394872]
[1733581968840,0.01060077,3994.6,3994.5,7.51691082]
[1733581969344,0.01060077,3994.6,3994.5,8.45991912]
[1733581969543,0.01060077,3994.6,3994.5,8.07621912]
[1733581970640,0.18565077,3994.6,3994.5,8.07621912]
[1733581970841,0.01060077,3994.6,3994.5,8.07621912]
[1733581972448,0.18565077,3994.6,3994.5,8.07621912]
[1733581974544,0.18565077,3994.6,3994.5,3.2078]
[1733581975046,0.17507,3994.2,3994.1,7.1329876]
[1733581975241,0.17507,3994.2,3994.1,3.2078]
[1733581975635,0.3911,3994.4,3994.0,3.9251876]
[1733581975841,0.17507,3994.0,3993.9,3.9251876]
[1733581976438,0.17508,3993.9,3993.8,5.88444954]
[1733581976638,0.17508,3993.9,3993.8,10.75337123]
[1733581978348,0.17508,3993.9,3993.8,3.9262743]
[1733581978752,0.17508,3993.8,3993.7,3.9262743]
[1733581978946,0.55618,3993.8,3993.7,3.9262743]
[1733581979145,0.17509,3993.7,3993.6,7.1340743]
[1733581979952,0.17509,3993.7,3993.6,3.2078]
[1733581980356,0.17509,3993.7,3993.6,7.13409285]
[1733581981244,0.17509,3993.7,3993.6,3.2078]
[1733581981444,0.17509,3993.6,3993.5,3.92629285]
[1733581981646,0.55579,3993.6,3993.5,3.92629285]
[1733581982050,0.55579,3993.6,3993.5,4.86911543]
[1733581982051,0.3807,3993.6,3993.5,4.86911543]
[1733581982252,0.55579,3993.6,3993.5,3.92632508]
[1733581983449,0.1751,3993.5,3993.4,3.92632508]
[1733581983855,0.3807,3993.6,3993.2,6.70154954]
[1733581984046,0.1751,3993.3,3993.2,6.70154954]
[1733581984249,0.1751,3993.3,3993.2,5.68619422]
[1733581984756,0.1751,3993.3,3993.2,6.58890853]
[1733581985759,0.1751,3993.3,3993.2,11.57064376]
[1733581985957,0.1751,3993.3,3993.2,12.47335807]
[1733581986153,0.1751,3993.3,3993.2,6.58890853]
[1733581987554,0.1751,3993.3,3993.2,12.47335807]
[1733581987755,0.1751,3993.3,3993.2,6.58890853]
[1733581988054,0.1751,3993.3,3993.2,6.58955963]
[1733581988258,0.1751,3993.3,3993.2,5.64665256]
[1733581988961,0.1751,3993.3,3993.2,6.58952572]
[1733581989461,0.1751,3993.3,3993.2,12.47397526]
[1733581989761,0.1751,3993.3,3993.2,6.58952572]
[1733581990260,0.90271431,3993.4,3993.2,3.92722099]
[1733581990554,0.17511,3993.2,3993.1,3.2078]
[1733581991464,0.17511,3993.2,3993.1,7.13502099]
[1733581994370,0.17511,3993.2,3993.1,4.28562431]
[1733581994570,0.17511,3993.2,3993.1,15.03776674]
[1733581994964,0.17511,3993.2,3993.1,9.1533172]
[1733581995472,0.3807,3993.6,3993.1,14.86557156]
[1733581995675,0.3807,3993.6,3993.3,4.10000502]
[1733581995871,0.1751,3993.4,3993.3,4.10000502]
[1733581996065,0.1751,3993.4,3993.3,3.92490502]
[1733581996377,0.1751,3993.3,3993.2,4.68760502]
[1733581996570,0.1751,3993.3,3993.2,0.3833]
[1733581996777,0.17511,3993.2,3993.1,3.2078]
[1733581996967,0.55491,3993.2,3993.1,3.2078]
[1733581998971,0.55491,3993.2,3992.8,0.3924]
[1733581998972,0.17512,3992.9,3992.8,0.3924]
[1733582001082,0.90271431,3993.0,3992.6,3.2078]
[1733582001286,0.17513,3992.7,3992.6,3.2078]
[1733582007587,0.17515,3992.3,3992.2,3.2078]
[1733582008276,0.17515,3992.2,3992.1,0.3849]
[1733582015981,0.667,3992.5,3991.8,7.13270502]
[1733582016290,0.667,3992.5,3991.8,3.2078]
[1733582016291,0.17517,3991.9,3991.8,3.2078]
[1733582017193,0.17517,3991.8,3991.7,0.4115]
[1733582019692,0.17517,3991.8,3991.4,6.06255436]
[1733582019693,0.3866,3992.0,3991.4,3.92490502]
[1733582019889,0.17519,3991.4,3991.3,7.13270502]
[1733582020288,0.17519,3991.4,3991.3,3.2078]
[1733582020492,0.17519,3991.4,3991.3,7.13270502]
[1733582020692,0.17519,3991.4,3991.3,3.2078]
[1733582021997,0.17519,3991.4,3991.3,3.38299]
[1733582022200,0.17519,3991.4,3991.3,3.2078]
[1733582023687,0.17519,3991.5,3991.4,0.17518]
[1733582024091,0.17519,3991.5,3991.4,0.55728]
[1733582026897,0.4029,3991.9,3991.4,0.3821]
[1733582027101,0.17518,3991.8,3991.7,0.17517]
[1733582027500,0.84217,3992.0,3991.9,0.17517]
[1733582027697,0.17517,3992.0,3991.9,0.17517]
[1733582030399,0.90373729,3992.3,3991.8,4.71370502]
[1733582030597,0.17517,3991.9,3991.8,4.33450502]
[1733582030800,0.17517,3991.9,3991.8,0.4096]
[1733582030999,0.17517,3991.7,3991.5,4.31330502]
[1733582031199,0.17518,3991.6,3991.5,4.31330502]
[1733582031403,0.17518,3991.6,3991.5,0.3884]
[1733582032301,0.17518,3991.6,3991.5,4.31330502]
[1733582033594,0.17518,3991.7,3991.6,0.17517]
[1733582033801,0.17518,3991.7,3991.6,4.10007502]
[1733582034603,0.17518,3991.7,3991.6,5.0444667]
[1733582035010,0.17518,3991.7,3991.6,4.10195982]
[1733582035894,0.90373729,3992.0,3991.6,4.87025944]
[1733582036094,0.90373729,3992.0,3991.9,4.10260549]
[1733582036095,0.17516,3992.0,3991.9,4.10260549]
[1733582036498,1.30833729,3992.3,3992.0,0.17516]
[1733582036499,0.17516,3992.1,3992.0,0.17516]
[1733582036706,0.17516,3992.1,3992.0,4.48501375]
[1733582036898,0.17516,3992.1,3992.0,0.94726]
[1733582037102,0.43784,3992.7,3992.0,4.69985375]
[1733582037103,0.90373729,3992.5,3992.0,4.69985375]
[1733582037301,0.17516,3992.2,3992.1,0.17515]
[1733582037501,0.17516,3992.2,3992.1,4.10290375]
[1733582037901,0.17516,3992.2,3992.1,0.17515]
[1733582038096,0.17516,3992.2,3992.1,4.10290375]
[1733582039001,0.17516,3992.2,3992.1,0.17515]
[1733582040003,0.17516,3992.1,3992.0,4.87501375]
[1733582040607,0.17516,3992.1,3992.0,5.82048493]
[1733582040816,0.90373729,3992.5,3992.0,5.64532493]
[1733582041003,0.17515,3992.3,3992.2,0.17515]
[1733582041602,0.17515,3992.3,3992.2,4.10487659]
[1733582041808,0.17515,3992.3,3992.2,5.04969725]
[1733582042009,0.17515,3992.3,3992.2,4.10601544]
[1733582042716,0.17515,3992.3,3992.2,0.17515]
[1733582042914,0.90373729,3992.5,3992.1,5.88736436]
[1733582043111,0.90373729,3992.5,3992.2,3.93197347]
[1733582043313,0.17514,3992.4,3992.3,3.93197347]
[1733582043708,0.17514,3992.4,3992.3,4.87675399]
[1733582043912,0.17514,3992.4,3992.3,10.76411835]
[1733582044918,0.17514,3992.4,3992.3,10.77664993]
[1733582045414,0.17514,3992.4,3992.3,10.77677261]
[1733582045609,0.17514,3992.4,3992.3,10.77772562]
[1733582045809,0.17514,3992.4,3992.3,10.77775977]
[1733582046008,0.17514,3992.4,3992.3,4.87675399]
[1733582046811,0.17514,3992.4,3992.3,5.05190399]
[1733582048423,0.17514,3992.4,3992.3,4.87675399]
[1733582048616,0.17514,3992.4,3992.3,5.05190399]
[1733582049115,0.17514,3992.4,3992.3,5.05515251]
[1733582049317,0.4088,3992.8,3992.3,12.69832341]
[1733582049519,3.2078,3993.1,3992.7,0.90373729]
[1733582049520,0.3776,3993.0,3992.7,0.90373729]
[1733582049718,0.55272,3993.0,3992.9,0.17512]
[1733582049912,0.55272,3993.0,3992.9,5.05512251]
[1733582050119,0.3776,3993.0,3992.9,10.95773946]
[1733582050824,0.4083,3993.1,3993.0,0.17512]
[1733582051033,0.7859,3993.1,3993.0,5.05512251]
[1733582051225,0.7859,3993.1,3993.0,4.10954]
[1733582051928,0.3776,3993.1,3993.0,4.10954]
[1733582052126,4.48743729,3993.5,3993.0,5.78229067]
[1733582052127,0.3852,3993.4,3993.0,5.78229067]
[1733582052328,0.5527,3993.5,3993.4,0.1751]
[1733582052631,0.5527,3993.5,3993.4,4.10891718]
[1733582052632,0.3776,3993.5,3993.4,4.10891718]
[1733582052828,0.3776,3993.5,3993.4,5.83945991]
[1733582053130,0.3776,3993.5,3993.4,11.74118094]
[1733582053424,0.3776,3993.5,3993.4,5.83945991]
[1733582053725,0.17508,3993.9,3993.8,0.17508]
[1733582053930,1.57073729,3994.1,3993.9,0.17508]
[1733582055331,0.3859,3994.2,3993.9,0.17508]
[1733582055725,0.56097,3994.2,3993.9,0.17508]
[1733582055931,0.17506,3994.3,3993.9,0.17508]
[1733582056127,0.17507,3994.1,3993.9,0.17508]
[1733582056337,0.2389,3994.0,3993.9,0.17508]
[1733582056532,0.47143,3994.0,3993.9,0.17508]
[1733582057838,0.06383,3994.0,3993.9,0.17508]
[1733582059636,0.06383,3994.0,3993.9,1.07881729]
[1733582059832,0.06383,3994.0,3993.9,5.94033488]
[1733582060033,0.06383,3994.0,3993.9,11.84205591]
[1733582060234,0.06383,3994.0,3993.9,6.71563488]
[1733582061336,0.06383,3994.0,3993.9,5.77050792]
[1733582062343,0.06383,3994.0,3993.9,1.85411729]
[1733582062839,0.3954,3994.6,3993.9,1.67903729]
[1733582063044,0.3954,3994.6,3994.5,0.17505]
[1733582065543,0.57045,3994.6,3994.5,0.17505]
[1733582065745,0.57045,3994.6,3994.5,1.07878729]
[1733582066044,0.3954,3994.6,3994.5,0.17505]
[1733582066445,0.57045,3994.6,3994.3,0.17506]
[1733582066643,0.3982,3994.5,3994.4,0.17505]
[1733582066840,0.3982,3994.5,3994.4,1.07878729]
[1733582067040,0.3954,3994.6,3994.5,0.17505]
[1733582068841,0.3954,3994.6,3994.5,0.98325]
[1733582069236,0.667,3995.0,3994.5,0.8082]
[1733582069451,0.4093,3994.9,3994.8,0.17504]
[1733582072946,0.58433,3994.9,3994.8,0.17504]
[1733582073750,0.4093,3994.9,3994.8,0.17504]
[1733582075847,0.58433,3994.9,3994.8,0.17504]